Cogmind - Beta 15 --- EXPLORER MODE // 2025.07.03 @ 15:53:10 // Winter2019/RPGLIKE Player: User15V Result: Self-destructed Performance ------------- Evolutions (1) 500 Regions Visited (5) 1000 Robots Destroyed (21) 105 Value Destroyed (355) 355 Prototype IDs (23) 460 Alien Tech Used (0) 0 Bonus (300) 300 TOTAL SCORE: 2720 Bonus ------- Aligned with FarCom 300 Cogmind --------- Core Integrity 591/600 Matter 286/300 Energy 265/265 System Corruption 0% Temperature Cool (0) Movement Hovering (56) Location -9/Exiles Parts ------- > --- POWER (1) -------- Reinforced Ion Engine > --- PROPULSION (2) --- Hover Unit Hover Unit > --- UTILITY (3) ------ Visual Processing Unit Signal Interpreter Improved Terrain Scanner > --- WEAPON (2) ------- Heavy Assault Rifle Autogun > --- INVENTORY (4) ---- Light Assault Rifle Grenade Launcher Datajack Mining Laser Peak State ------------ > --- POWER ------------ Reinforced Ion Engine > --- PROPULSION ------- Hover Unit Hover Unit > --- UTILITY ---------- Visual Processing Unit Signal Interpreter Improved Terrain Scanner > --- WEAPON ----------- Heavy Assault Rifle Autogun > --- INVENTORY -------- Light Assault Rifle Grenade Launcher Datajack Mining Laser [Rating: 14] Favorites ----------- Power Reinforced Ion Engine Engine Reinforced Ion Engine Propulsion Hover Unit Hover Unit Hover Unit Utility Signal Interpreter Device Improved Terrain Scanner Processor Signal Interpreter Weapon Light Assault Rifle Ballistic Gun Light Assault Rifle Build | -11 -10 -10 -9 -9 -9 ------- Run | Yrd Mat Min Mat Min Exi Slots Evolved 4 | 4 . . . . . Power . | . . . . . . Propulsion 1 | 1 . . . . . Utility 2 | 2 . . . . . Weapon 1 | 1 . . . . . Parts Attached 11 | 4 3 . 4 . . Power 2 | . 1 . 1 . . Engine 2 | . 1 . 1 . . Core . | . . . . . . Reactor . | . . . . . . Propulsion 2 | . 1 . 1 . . Treads . | . . . . . . Leg . | . . . . . . Wheel . | . . . . . . Hover 2 | . 1 . 1 . . Flight . | . . . . . . Utility 3 | 2 1 . . . . Device 1 | 1 . . . . . Storage . | . . . . . . Processor 2 | 1 1 . . . . Hackware . | . . . . . . Protection . | . . . . . . Artifact . | . . . . . . Weapon 4 | 2 . . 2 . . Energy Gun . | . . . . . . Energy Cannon . | . . . . . . Ballistic Gun 4 | 2 . . 2 . . Ballistic Cannon . | . . . . . . Launcher . | . . . . . . Special Weapon . | . . . . . . Impact Weapon . | . . . . . . Slashing Weapon . | . . . . . . Piercing Weapon . | . . . . . . Special Melee Weapon . | . . . . . . Unidentified Prototypes . | . . . . . . Parts Lost . | . . . . . . Power . | . . . . . . Propulsion . | . . . . . . Utility . | . . . . . . Weapon . | . . . . . . Highest Loss Streak . | . . . . . . To Critical Strikes . | . . . . . . Average Backups 2 | . 1 4 4 4 4 Power . | . . . . . . Propulsion . | . . . . . . Utility . | . . . . . . Weapon 2 | . 1 3 3 3 3 Tool/Special . | . . . . . . Unused Backups 4 | . . . . . 4 Power . | . . . . . . Propulsion . | . . . . . . Utility . | . . . . . . Weapon 3 | . . . . . 3 Tool/Special 1 | . . . . . 1 Average Slot Usage (%) 81 | . 66 87 88 100 100 Engine 6 | . . 12 12 12 12 Hover 14 | . 7 12 13 25 25 Device 12 | . 12 12 12 12 12 Processor 22 | . 20 25 25 25 25 Ballistic Gun 25 | . 25 25 25 25 25 Peak Build Rating 14 | 6 10 10 14 14 14 Average Rating 10 | 2 8 10 12 14 14 On Entrance 9 | . 6 10 10 14 14 Naked Turns . | . . . . . . Heaviest Build 17 | 3 6 6 17 17 17 Greatest Support 17 | 3 6 6 17 17 17 Greatest Overweight (x) 2 | . . . 2 . . Average Overweight (x) . | . . . . . . Largest Inventory Capacity 4 | 4 4 4 4 4 4 Average Capacity 3 | 3 4 4 4 4 4 Most Carried 4 | 2 4 4 4 4 4 Average Carried 2 | . 1 4 4 4 4 Final Capacity 4 | 4 4 4 4 4 4 Final Carried 4 | . 4 4 4 4 4 Class Distribution -------------------- 36% | Hacker-Scout 29% | Scavenger-Scout 21% | Hacker-Mutant 8% | Scavenger-Skirmisher 4% | Hacker-Skirmisher Dominant Class ---------------- Hacker-Scout | -10/Materials Hacker-Scout | -10/Mines Scavenger-Skirmisher | -9/Materials Scavenger-Scout | -9/Mines Scavenger-Scout | -9/Exiles Resources | -11 -10 -10 -9 -9 -9 ----------- Run | Yrd Mat Min Mat Min Exi Matter Collected 487 | 227 66 . 134 60 . Remotely . | . . . . . . Salvage Created 419 | 54 138 . 164 63 . Parts 38 | 3 9 . 13 13 . Haulers Intercepted 1 | . . . 1 . . Recyclers Shooed . | . . . . . . Parts Field Recycled . | . . . . . . Retrieved Matter . | . . . . . . Parts Self-Destructed . | . . . . . . Prevented . | . . . . . . Kills | -11 -10 -10 -9 -9 -9 ------- Run | Yrd Mat Min Mat Min Exi Combat Hostiles Destroyed 12 | . 3 . 4 5 . Guns 12 | . 3 . 4 5 . Classes Destroyed 9 | 1 4 . 3 1 . Worker 2 | . 1 . . 1 . Builder 1 | . . . . 1 . Tunneler 2 | 2 . . . . . Hauler 1 | . . . 1 . . Watcher 3 | . 1 . 2 . . Swarmer 7 | . 2 . . 5 . Grunt 2 | . 1 . 1 . . Brawler 1 | . . . 1 . . Sentry 2 | . . . 2 . . Best Kill Streak 7 | 1 2 . 3 7 . Combat Bots Only 5 | . 2 . 2 5 . Max Kills in Single Turn 1 | 1 1 . 1 1 . Gunslinging . | . . . . . . Exploded . | . . . . . . Melee . | . . . . . . Uniques/NPCs Destroyed . | . . . . . . Combat | -11 -10 -10 -9 -9 -9 -------- Run | Yrd Mat Min Mat Min Exi Hostile Shots Fired 35 | . 9 . 18 8 . Missed 13 | . 3 . 8 2 . Hits 22 | . 6 . 10 6 . Projectile 22 | . 6 . 10 6 . Critical Strikes 1 | . . . 1 . . Part Disruptions 2 | . . . 2 . . Damage Taken 172 | . 31 . 110 31 . Core 140 | . 28 . 88 24 . Absorbed by Shields . | . . . . . . Redirected to Core 92 | . 9 . 64 19 . Ignored by Resistances 112 | . 22 . 67 23 . Core Remaining (%) 97 | 100 . 95 . . . Volleys Fired 46 | 12 10 . 16 8 . Largest 2 | 2 2 . 2 2 . Hottest 46 | 40 40 . 46 46 . Shots Fired 90 | 23 20 . 31 16 . Gun 90 | 23 20 . 31 16 . Cannon . | . . . . . . Launcher . | . . . . . . Special . | . . . . . . Kinetic 90 | 23 20 . 31 16 . Thermal . | . . . . . . Explosive . | . . . . . . Electromagnetic . | . . . . . . Robot Hit Streak 17 | 14 17 . 13 8 . Robot Miss Streak 3 | 2 1 . 1 3 . Penetration Max . | . . . . . . Secondary Targets 2 | . 1 . . 1 . Max Gunslinging Chain 1 | . 1 . . 1 . Shots Hit Robots 71 | 20 16 . 26 9 . Core Hits 33 | 4 8 . 14 7 . Critical Kills . | . . . . . . Critical Parts Destroyed . | . . . . . . Critical Strikes . | . . . . . . Melee Attacks . | . . . . . . Impact . | . . . . . . Slashing . | . . . . . . Piercing . | . . . . . . Sneak Attacks . | . . . . . . Combat Hostiles . | . . . . . . Follow-up Attacks . | . . . . . . Damage Inflicted 841 | 163 127 . 426 125 . Guns 764 | 163 127 . 349 125 . Cannons . | . . . . . . Explosions 77 | . . . 77 . . Melee . | . . . . . . Ramming . | . . . . . . Kinetic 764 | 163 127 . 349 125 . Thermal . | . . . . . . Explosive . | . . . . . . Electromagnetic 77 | . . . 77 . . Impact . | . . . . . . Slashing . | . . . . . . Piercing . | . . . . . . Highest Corruption 1 | . 1 1 . . . Average Corruption 1 | . 1 1 . . . Corruption Purged . | . . . . . . Corruption Blocked . | . . . . . . Effects 1 | . 1 . . . . Heat Flow Errors 1 | . 1 . . . . Overload Shots . | . . . . . . Overflow Damage . | . . . . . . Projectiles . | . . . . . . Explosions . | . . . . . . Melee . | . . . . . . Knockbacks . | . . . . . . Impact . | . . . . . . Kinetic . | . . . . . . Secondary . | . . . . . . Self-Inflicted Damage 37 | . . . 37 . . Shots 2 | . . . 2 . . Rammed . | . . . . . . Targets Rammed . | . . . . . . Kicked . | . . . . . . Crushed . | . . . . . . Highest Temperature 140 | . 140 . 69 24 . Average Temperature 19 | . 57 . 16 12 . Received Heat Transfer 81 | . 12 . 69 . . Siege Activations . | . . . . . . Martial Activations . | . . . . . . Shielding Activations . | . . . . . . Robots Disrupted . | . . . . . . Combat Hostiles . | . . . . . . Robots Corrupted . | . . . . . . Combat Hostiles . | . . . . . . Parts Fried . | . . . . . . Impact Corruptions . | . . . . . . Robots Melted . | . . . . . . Combat Hostiles . | . . . . . . Parts Melted . | . . . . . . Heat Transferred . | . . . . . . Parts Sabotaged . | . . . . . . Parts Stolen . | . . . . . . Parts Stripped . | . . . . . . Power Chain Reactions . | . . . . . . Alert | -11 -10 -10 -9 -9 -9 ------- Run | Yrd Mat Min Mat Min Exi Maximum Alert Level . | . . . . . . Low Security (%) 100 | 100 100 100 100 100 . Level 1 . | . . . . . . Level 2 . | . . . . . . Level 3 . | . . . . . . Level 4 . | . . . . . . Level 5 . | . . . . . . High Security . | . . . . . . Max Security . | . . . . . . Peak Influence 120 | 5 60 5 65 120 . Initial 9 | . 2 5 . 9 . Average 16 | . 7 2 32 34 . Influence Increases 446 | 10 142 . 139 155 . Destroy 0b10 Robot/C 240 | . 60 . 80 100 . Destroy 0b10 Robot/NC 45 | 10 10 . 15 10 . Destroy Leader 88 | . 22 . 36 30 . Successful Hack 20 | . 20 . . . . Select Force Hacks 30 | . 30 . . . . Disable Machine 8 | . . . 8 . . Lose Combat Pursuer 15 | . . . . 15 . Influence Decreases 446 | 5 127 20 105 84 105 Entered New Map 148 | . 3 15 . 25 105 Time Decay 298 | 5 124 5 105 59 . Squads Dispatched 1 | . 1 . . . . Investigation 1 | . 1 . . . . Extermination . | . . . . . . Reinforcement . | . . . . . . Assault . | . . . . . . Garrison . | . . . . . . Intercept . | . . . . . . Searches Triggered . | . . . . . . Construction Impeded . | . . . . . . Haulers Reinforced . | . . . . . . Active Scanning Responses . | . . . . . . Cargo Convoy Interrupts . | . . . . . . Stealth | -11 -10 -10 -9 -9 -9 --------- Run | Yrd Mat Min Mat Min Exi Distress Signals 2 | . . . 2 . . Communications Jammed . | . . . . . . Distress Signals . | . . . . . . Times Spotted 19 | . 5 . 8 6 . Peak Tracking Total 3 | . 1 . 3 2 . Tactical Retreats 1 | . . . . 1 . Traps | -11 -10 -10 -9 -9 -9 ------- Run | Yrd Mat Min Mat Min Exi Traps Triggered 3 | . 2 . 1 . . Indirectly . | . . . . . . Trap Hack Attempts . | . . . . . . Triggered . | . . . . . . Disarmed . | . . . . . . Reprogrammed . | . . . . . . Reused . | . . . . . . Traps Extracted . | . . . . . . Installed . | . . . . . . Triggered . | . . . . . . Machines | -11 -10 -10 -9 -9 -9 ---------- Run | Yrd Mat Min Mat Min Exi Machines Disabled 2 | . . . 2 . . Max in Single Turn 2 | . . . 2 . . Machines Repaired . | . . . . . . Machines Dismantled . | . . . . . . Machines Sabotaged . | . . . . . . Overloaded Fab Kills . | . . . . . . Hacking | -11 -10 -10 -9 -9 -9 --------- Run | Yrd Mat Min Mat Min Exi Machines Accessed 8 | . 6 . 1 . 1 Terminals 6 | . 5 . 1 . . Fabricators . | . . . . . . Repair Stations . | . . . . . . Recycling Units 1 | . 1 . . . . Scanalyzers . | . . . . . . Garrison Access . | . . . . . . Total Hacks 10 | . 8 . 1 . 1 Successful 8 | . 6 . 1 . 1 Failed 2 | . 2 . . . . Catastrophic . | . . . . . . Database Lockouts . | . . . . . . Manual 10 | . 8 . 1 . 1 Terminals 8 | . 7 . 1 . . Fabricators . | . . . . . . Repair Stations . | . . . . . . Recycling Units 1 | . 1 . . . . Scanalyzers . | . . . . . . Garrison Access . | . . . . . . Terminal Hacks 2 | . . . 1 . 1 Branch Access Points 1 | . . . 1 . . Proto ID Catalog 1 | . . . . . 1 Fabricator Hacks . | . . . . . . Repair Station Hacks . | . . . . . . Recycling Unit Hacks . | . . . . . . Scanalyzer . | . . . . . . Garrison Access Hacks . | . . . . . . Unauthorized Hacks 6 | . 6 . . . . Terminals 5 | . 5 . . . . Skim 5 | . 5 . . . . Fabricators . | . . . . . . Repair Stations . | . . . . . . Recycling Units 1 | . 1 . . . . Tunnel 1 | . 1 . . . . Scanalyzers . | . . . . . . Garrison Access . | . . . . . . Data Cores Recovered . | . . . . . . Used . | . . . . . . Hacking Detections 2 | . 2 . . . . Full Trace Events . | . . . . . . Feedback Events . | . . . . . . Feedback Blocked . | . . . . . . Robot Schematics Acquired . | . . . . . . Robots Built . | . . . . . . Authchips . | . . . . . . Time . | . . . . . . Total Robot Build Rating . | . . . . . . Part Schematics Acquired . | . . . . . . Parts Built . | . . . . . . Authchips . | . . . . . . Time . | . . . . . . Total Part Build Rating . | . . . . . . Parts Repaired . | . . . . . . Time . | . . . . . . Parts Recycled . | . . . . . . Recycled Matter . | . . . . . . Retrieved Matter . | . . . . . . Retrieved Components . | . . . . . . Parts Scanalyzed . | . . . . . . Part Schematics Acquired . | . . . . . . Parts Damaged . | . . . . . . Bothacking | -11 -10 -10 -9 -9 -9 ------------ Run | Yrd Mat Min Mat Min Exi Used RIF Installer . | . . . . . . Robots Hacked . | . . . . . . Non-combat . | . . . . . . Combat . | . . . . . . Robot Hacks Applied . | . . . . . . Relay Couplers Released . | . . . . . . Fabnet Peak Effective % . | . . . . . . Robots Rewired . | . . . . . . Allies Hacked . | . . . . . . Hacks Repelled . | . . . . . . Allies | -11 -10 -10 -9 -9 -9 -------- Run | Yrd Mat Min Mat Min Exi Total Allies . | . . . . . . Largest Group . | . . . . . . Highest-Rated Group . | . . . . . . Highest-Rated Ally . | . . . . . . Total Orders . | . . . . . . Ally Attacks . | . . . . . . Total Damage . | . . . . . . Kills . | . . . . . . Allies Corrupted . | . . . . . . Allies Melted . | . . . . . . Intel | -11 -10 -10 -9 -9 -9 ------- Run | Yrd Mat Min Mat Min Exi Active Infowar (turns) 904 | 3 433 34 164 145 125 Optics 760 | . 292 34 164 145 125 Terrain 892 | 3 433 34 152 145 125 Robot Analysis Total . | . . . . . . Derelict Logs Recovered . | . . . . . . Drone Launches . | . . . . . . Drone Recoveries . | . . . . . . Exploration | -11 -10 -10 -9 -9 -9 ------------- Run | Yrd Mat Min Mat Min Exi Turns Passed 976 | 75 433 34 164 145 125 Spaces Moved 840 | 53 390 56 98 93 150 Core 245 | 53 192 . . . . Treads . | . . . . . . Legs . | . . . . . . Wheels . | . . . . . . Hover 595 | . 198 56 98 93 150 Flight . | . . . . . . Fastest Speed 50 | 50 50 60 56 56 56 Average Speed 61 | 50 55 60 109 56 56 Slowest Speed 180 | 50 60 60 180 56 56 Overloaded Moves . | . . . . . . Propulsion Burnouts . | . . . . . . Robots Hopped . | . . . . . . Potential Cave-ins . | . . . . . . Cave-ins Triggered . | . . . . . . Exploration Rate (%) 25 | 4 45 18 20 26 41 Regions Visited 5 Branch Regions 3 Pre-discovered Areas 1 | . 1 . . . . Known Exits Taken 5 | 1 1 1 1 1 . Unknown Exits Taken . | . . . . . . Scrap Searched 1 | . . . . 1 . Spaces Dug . | . . . . . . Terrain Destroyed . | . . . . . . Melee . | . . . . . . Projectile . | . . . . . . AOE . | . . . . . . Terrain Rammed . | . . . . . . Walls Destroyed . | . . . . . . Machines Disabled . | . . . . . . Actions | -11 -10 -10 -9 -9 -9 --------- Run | Yrd Mat Min Mat Min Exi Total 1218 | 82 591 55 129 171 190 Wait 302 | 11 183 . . 68 40 Move 835 | 52 389 55 97 92 150 Hop . | . . . . . . Pick Up 9 | 3 6 . . . . Fast Attach 3 | 1 1 . 1 . . Attach 5 | 3 2 . . . . Detach . | . . . . . . Swap 3 | . . . 3 . . Drop 3 | . . . 3 . . Fire 46 | 12 10 . 16 8 . Melee . | . . . . . . Ram . | . . . . . . Kick . | . . . . . . Crush . | . . . . . . Escape Stasis . | . . . . . . Rewire . | . . . . . . Trap . | . . . . . . Miscellaneous 12 | . . . 9 3 . Route ------- -11/Scrapyard -10/Materials (discovered 5 exits: *Mat x3 / *Min / Sub) -10/Mines (discovered 2 exits: *Mat x2) -9/Materials -9/Mines (discovered 2 exits: *Mat / *Exi) -9/Exiles History --------- Turn | Location | Event 5 | -11/Scrapyard | Upgraded with Propulsion slot (x1) 5 | -11/Scrapyard | Upgraded with Utility slot (x2) 5 | -11/Scrapyard | Upgraded with Weapon slot (x1) 6 | -11/Scrapyard | Identified exit to Materials 6 | -11/Scrapyard | Discovered exit to Materials (range 14) 76 | -11/Scrapyard | Entered Materials 119 | -10/Materials | Identified exit to Materials 119 | -10/Materials | Discovered exit to Materials (range 11) 237 | -10/Materials | Identified exit to Mines 237 | -10/Materials | Discovered exit to Mines (range 11) 244 | -10/Materials | Discovered exit to Materials (range 8) 373 | -10/Materials | Learned Storage stockpile data 393 | -10/Materials | Learned Storage trap positions 405 | -10/Materials | Learned location of 1 exit from Recycling 429 | -10/Materials | Identified exit to Subcaves 509 | -10/Materials | Entered Mines 522 | -10/Mines | Build established: Hacker-Scout 543 | -10/Mines | Entered Materials 545 | -9/Materials | Reached level 2 545 | -9/Materials | Reached level 3 548 | -9/Materials | Identified exit to Mines 570 | -9/Materials | Reached level 4 707 | -9/Materials | Entered Mines 760 | -9/Mines | Identified exit to Materials 760 | -9/Mines | Discovered exit to Materials (range 13) 814 | -9/Mines | Reached level 5 843 | -9/Mines | Identified exit to Exiles 843 | -9/Mines | Discovered exit to Exiles (range 10) 850 | -9/Mines | Deemed a non-threat by the Exiles lab entrance 852 | -9/Mines | Entered Exiles 867 | -9/Exiles | Met 8R-AWN 876 | -9/Exiles | Met EX-HEX 891 | -9/Exiles | Met EX-BIN 960 | -9/Exiles | Aligned with FarCom system 961 | -9/Exiles | Given EX-Vault access code 974 | -9/Exiles | Opened EX-Vault 977 | -9/Exiles | Self-destructed Last Messages --------------- Modified TNC 0b10 Alert Chip Cloak of Protection Skeleton Box Trap Reconfigurator Supersonic Drone Bay Army-in-a-Box PSU Rigger Chronowheel AWS/Thermal Latent Energy Streamer Gui. Plasma Cannon Firepult YOLO Cannon AWS/Gauss XL Autogun Array AWS/Autocannon Field Lobotomy Kit Longsword +1 Deploy-a-Sentry Map ----- +----------------------------------------------------+ | | | | | | | | | | | | | | | | | | | | | | | | | | | | | | | | | | | | | | | | | | | | | | | ?????????######?######################???????????? | | ?????????##?######?######X#############??????????? | | ????????##############! @== ###########?????????? | | ????????############## ! ###########?????????? | | ????????############## #########?#?????????? | | ????????#?############# ###########??????????? | | ????????##############X ###?########?????????? | | ???????################ ############?????????? | | ????????############### #############????????? | | ????????############### #############????????? | | ????????############### ##""""""#####????????? | | ????????############### ## """#####????????? | | ????????############### X""######???????? | | ?????????############## ## """#####????????? | | ?????????############## ##""""""#####?#??????? | | ??????????#####""""""## ##############????#??? | | ??????????#####"""" ## #########??####??????? | | ???????????####""X" #########?#?#?#??????? | | ?????????#?####" #########?######???#?? | | ????????????###" ## ##############?#?????? | | ???????????####""""""## ############?###?????? | | ????????????#?##"###### ###"""""""#?##??#????? | | ????????????# "###### ###"""""""####???????? | | ??????????#??"""?####?# ###"""""""##???#?????? | | ??????????????""?#?#?## ###"" """"#####?##???? | | ???????????????" #####" """"####???#???? | | ????????????#?#####?##" """##?#####???? | +----------------------------------------------------+ Best States ------------- Heat Dissipation 25 Energy Generation 12 Energy Capacity 265 Matter Stores 300 Matter Capacity 300 Sight Range 18 Terrain Scan Range 16 Terrain Scan Density 610 Resistance: KI 35 Resistance: TH 35 Resistance: EX 35 Resistance: EM 35 Resistance: I 35 Resistance: S 35 Resistance: P 35 Evasion (%) 53 Offensive Hacking 20 Item Schematics ----------------- None Robot Schematics ------------------ None Fabricated ------------ Nothing Repaired ---------- Nothing Alien Tech Used ----------------- None Achievements -------------- None Challenges ------------ None RPGLIKE | -11 -10 -10 -9 -9 -9 --------- Run | Yrd Mat Min Mat Min Exi Levels Raised 4 | . . . 3 1 . XP Earned 12521 | 6000 650 500 3871 1150 350 XP Spent 5800 | 5700 . . 100 . . Upgrades 15 | 14 . . 1 . . Propulsion Slot 1 | 1 . . . . . Utility Slot 2 | 2 . . . . . Weapon Slot 1 | 1 . . . . . Mass Support 1 | . . . 1 . . Inventory Capacity 4 | 4 . . . . . Terrain Scan Density 6 | 6 . . . . . Protomatter Created 204 | . . . 154 50 . Integrity Restored 203 | . . . 164 39 . Core 131 | . . . 116 15 . Parts 72 | . . . 48 24 . Protomatter Decayed 33 | . . . 16 17 . Game ------ Seed CommDeflectorBroadsword Manual? 0 Play Time 00:07:28 Cumulative 627.5 hours Start 2025.07.03 @ 15:46:24 End 2025.07.03 @ 15:53:10 Sessions 1 Manual Loads 0 Difficulty Explorer Special Mode Winter2019/RPGLIKE Game No. 258 Rogue 104 Adventurer 111 Explorer 43 Win Type - Total 43 Types 21/5/1/7/2/1/1/1/1/3 Lore% 92 Gallery% 97 Achievement% 96 Wizard Run 0 Options --------- Layout 2 ASCII 0 Keyboard 0 Movement Mouse Keybinds 0 Fullscreen 2 Font 24/Smallcaps Map View 50x44 Zoom Use 0% Tactical HUD 1 Map Filters NONE Filters NONE Steam 1 RUN: 2928e0ae-04b9-4645-b1cb-0f9a8ddcef33